Workbook

Sheet 总成绩
A1: 长顺县2023年“特岗计划”教师招聘面试成绩、总成绩、进入体检人员名单
A2: 序号 | B2: 姓名 | C2: 科目 | D2: 学段 | E2: 笔试成绩 | F2: 面试成绩 | G2: 总成绩 | H2: 成绩排名 | I2: 是否进入体检环节 | J2: 备注
A3: 1 | B3: 赵春琳 | C3: 语文 | D3: 小学 | E3: 83 | F3: 88.48 | G3: =E3*0.5+F3*0.5 -> 85.74 | H3: 1 | I3: 是
A4: 2 | B4: 谢玲 | C4: 语文 | D4: 小学 | E4: 80 | F4: 87.97 | G4: 83.99 | H4: 2 | I4: 是
A5: 3 | B5: 熊姣 | C5: 语文 | D5: 小学 | E5: 79 | F5: 87.53 | G5: 83.27 | H5: 3 | I5: 是
A6: 4 | B6: 张鲜喜 | C6: 语文 | D6: 小学 | E6: 77 | F6: 89.06 | G6: 83.03 | H6: 4 | I6: 是
A7: 5 | B7: 雷倩 | C7: 语文 | D7: 小学 | E7: 78 | F7: 87.32 | G7: 82.66 | H7: 5 | I7: 是
A8: 6 | B8: 王愿 | C8: 语文 | D8: 小学 | E8: 77 | F8: 87.79 | G8: 82.40 | H8: 6 | I8: 是
A9: 7 | B9: 徐淼 | C9: 语文 | D9: 小学 | E9: 78 | F9: 85.23 | G9: 81.62 | H9: 7 | I9: 是
A10: 8 | B10: 王玉 | C10: 语文 | D10: 小学 | E10: 76 | F10: 87.04 | G10: 81.52 | H10: 8 | I10: 是
A11: 9 | B11: 陈正桃 | C11: 语文 | D11: 小学 | E11: 75 | F11: 87.11 | G11: 81.06 | H11: 9 | I11: 是
A12: 10 | B12: 罗江丽 | C12: 语文 | D12: 小学 | E12: 74 | F12: 86.81 | G12: 80.41 | H12: 10 | I12: 是
A13: 11 | B13: 刘小芳 | C13: 语文 | D13: 小学 | E13: 71 | F13: 89.63 | G13: 80.32 | H13: 11 | I13: 否
A14: 12 | B14: 韦小凤 | C14: 语文 | D14: 小学 | E14: 74 | F14: 86.50 | G14: 80.25 | H14: 12 | I14: 否
A15: 13 | B15: 周德艳 | C15: 语文 | D15: 小学 | E15: 75 | F15: 85.13 | G15: 80.07 | H15: 13 | I15: 否
A16: 14 | B16: 罗思琦 | C16: 语文 | D16: 小学 | E16: 69 | F16: 90.80 | G16: 79.90 | H16: 14 | I16: 否
A17: 15 | B17: 王江会 | C17: 语文 | D17: 小学 | E17: 76 | F17: 83.60 | G17: 79.80 | H17: 15 | I17: 否
A18: 16 | B18: 吴忆秋 | C18: 语文 | D18: 小学 | E18: 73 | F18: 86.03 | G18: 79.52 | H18: 16 | I18: 否
A19: 17 | B19: 杨顺可 | C19: 语文 | D19: 小学 | E19: 73 | F19: 85.85 | G19: 79.43 | H19: 17 | I19: 否
A20: 18 | B20: 徐瑞亚 | C20: 语文 | D20: 小学 | E20: 73 | F20: 85.24 | G20: 79.12 | H20: 18 | I20: 否
A21: 19 | B21: 黄亚萍 | C21: 语文 | D21: 小学 | E21: 71 | F21: 86.84 | G21: 78.92 | H21: 19 | I21: 否
A22: 20 | B22: 李颖 | C22: 语文 | D22: 小学 | E22: 73 | F22: 84.83 | G22: 78.92 | H22: 20 | I22: 否
A23: 21 | B23: 马超兰 | C23: 语文 | D23: 小学 | E23: 71 | F23: 86.72 | G23: 78.86 | H23: 21 | I23: 否
A24: 22 | B24: 李晓倩 | C24: 语文 | D24: 小学 | E24: 71 | F24: 86.47 | G24: 78.74 | H24: 22 | I24: 否
A25: 23 | B25: 花白兰 | C25: 语文 | D25: 小学 | E25: 70 | F25: 87.40 | G25: 78.70 | H25: 23 | I25: 否
A26: 24 | B26: 莫洋洋 | C26: 语文 | D26: 小学 | E26: 70 | F26: 86.98 | G26: 78.49 | H26: 24 | I26: 否
A27: 25 | B27: 杨思瑶 | C27: 语文 | D27: 小学 | E27: 70 | F27: 86.88 | G27: 78.44 | H27: 25 | I27: 否
A28: 26 | B28: 杨婷 | C28: 语文 | D28: 小学 | E28: 69 | F28: 87.79 | G28: 78.40 | H28: 26 | I28: 否
A29: 27 | B29: 白雪艳 | C29: 语文 | D29: 小学 | E29: 72 | F29: 84.61 | G29: 78.31 | H29: 27 | I29: 否
A30: 28 | B30: 罗惠琴 | C30: 语文 | D30: 小学 | E30: 69 | F30: 87.30 | G30: 78.15 | H30: 28 | I30: 否
A31: 29 | B31: 何江蓉 | C31: 语文 | D31: 小学 | E31: 71 | F31: 84.32 | G31: 77.66 | H31: 29 | I31: 否
A32: 30 | B32: 余海艳 | C32: 语文 | D32: 小学 | E32: 69 | F32: 85.32 | G32: 77.16 | H32: 30 | I32: 否
A33: 31 | B33: 杨沙沙 | C33: 语文 | D33: 小学 | E33: 69 | F33: 85.07 | G33: 77.04 | H33: 21 | I33: 否
A34: 32 | B34: 李薇 | C34: 语文 | D34: 小学 | E34: 72 | F34: 81.89 | G34: 76.95 | H34: 32 | I34: 否
A35: 33 | B35: 王丽 | C35: 语文 | D35: 小学 | E35: 69 | F35: 84.72 | G35: 76.86 | H35: 33 | I35: 否
A36: 34 | B36: 吴菁燕 | C36: 语文 | D36: 小学 | E36: 69 | F36: 83.81 | G36: 76.41 | H36: 34 | I36: 否
A37: 35 | B37: 马润娇 | C37: 语文 | D37: 小学 | E37: 69 | F37: 83.33 | G37: 76.17 | H37: 35 | I37: 否
A38: 36 | B38: 钟林林 | C38: 语文 | D38: 小学 | E38: 69 | F38: 83.23 | G38: 76.12 | H38: 36 | I38: 否
A39: 37 | B39: 邱敏 | C39: 语文 | D39: 小学 | E39: 69 | F39: 83.17 | G39: 76.09 | H39: 37 | I39: 否
A40: 38 | B40: 居玉杰 | C40: 语文 | D40: 小学 | E40: 78 | F40: 缺考 | G40: =E40*0.5 -> 39.00 | H40: 38 | I40: 否
A41: 39 | B41: 刘锐 | C41: 语文 | D41: 小学 | E41: 69 | F41: 缺考 | G41: =E41*0.5 -> 34.50 | H41: 39 | I41: 否
A42: 40 | B42: 刘立 | C42: 语文 | D42: 初中 | E42: 74 | F42: 86.17 | G42: =E42*0.5+F42*0.5 -> 80.09 | H42: 1 | I42: 是
A43: 41 | B43: 梁敏 | C43: 语文 | D43: 初中 | E43: 72 | F43: 86.52 | G43: 79.26 | H43: 2 | I43: 是
A44: 42 | B44: 罗玉娟 | C44: 语文 | D44: 初中 | E44: 72 | F44: 85.62 | G44: 78.81 | H44: 3 | I44: 是
A45: 43 | B45: 罗丽红 | C45: 语文 | D45: 初中 | E45: 70 | F45: 84.95 | G45: 77.48 | H45: 4 | I45: 是
A46: 44 | B46: 向再姣 | C46: 语文 | D46: 初中 | E46: 70 | F46: 83.70 | G46: 76.85 | H46: 5 | I46: 否
A47: 45 | B47: 苏金芳 | C47: 语文 | D47: 初中 | E47: 69 | F47: 84.35 | G47: 76.68 | H47: 6 | I47: 否
A48: 46 | B48: 卢龙菊 | C48: 语文 | D48: 初中 | E48: 73 | F48: 79.99 | G48: 76.50 | H48: 7 | I48: 否
A49: 47 | B49: 郭荣 | C49: 语文 | D49: 初中 | E49: 70 | F49: 82.51 | G49: 76.26 | H49: 8 | I49: 否
A50: 48 | B50: 张春兰 | C50: 语文 | D50: 初中 | E50: 70 | F50: 82.31 | G50: 76.16 | H50: 9 | I50: 否
A51: 49 | B51: 郑东琼 | C51: 语文 | D51: 初中 | E51: 73 | F51: 78.81 | G51: 75.91 | H51: 10 | I51: 否
A52: 50 | B52: 邹童琳 | C52: 语文 | D52: 初中 | E52: 69 | F52: 82.79 | G52: 75.90 | H52: 11 | I52: 否
A53: 51 | B53: 刘焕 | C53: 语文 | D53: 初中 | E53: 71 | F53: 79.80 | G53: 75.40 | H53: 12 | I53: 否
A54: 52 | B54: 王思佳 | C54: 语文 | D54: 初中 | E54: 69 | F54: 76.26 | G54: 72.63 | H54: 13 | I54: 否
A55: 53 | B55: 陈菊 | C55: 语文 | D55: 初中 | E55: 69 | F55: 缺考 | G55: =E55*0.5 -> 34.50 | H55: 14 | I55: 否
A56: 54 | B56: 阮加玥 | C56: 数学 | D56: 小学 | E56: 90 | F56: 79.59 | G56: =E56*0.5+F56*0.5 -> 84.80 | H56: 1 | I56: 是
A57: 55 | B57: 韦家家 | C57: 数学 | D57: 小学 | E57: 87 | F57: 80.57 | G57: 83.79 | H57: 2 | I57: 是
A58: 56 | B58: 杨志强 | C58: 数学 | D58: 小学 | E58: 77 | F58: 82.15 | G58: 79.58 | H58: 3 | I58: 是
A59: 57 | B59: 班文丽 | C59: 数学 | D59: 小学 | E59: 74 | F59: 82.50 | G59: 78.25 | H59: 4 | I59: 是
A60: 58 | B60: 文千雨 | C60: 数学 | D60: 小学 | E60: 72 | F60: 82.32 | G60: 77.16 | H60: 5 | I60: 是
A61: 59 | B61: 王政治 | C61: 数学 | D61: 小学 | E61: 67 | F61: 86.41 | G61: 76.71 | H61: 6 | I61: 是
A62: 60 | B62: 吕小艳 | C62: 数学 | D62: 小学 | E62: 64 | F62: 89.05 | G62: 76.53 | H62: 7 | I62: 否
A63: 61 | B63: 高榜垸 | C63: 数学 | D63: 小学 | E63: 65 | F63: 86.05 | G63: 75.53 | H63: 8 | I63: 否
A64: 62 | B64: 陈小溪 | C64: 数学 | D64: 小学 | E64: 72 | F64: 78.86 | G64: 75.43 | H64: 9 | I64: 否
A65: 63 | B65: 王文起 | C65: 数学 | D65: 小学 | E65: 74 | F65: 75.88 | G65: 74.94 | H65: 10 | I65: 否
A66: 64 | B66: 宋倩 | C66: 数学 | D66: 小学 | E66: 64 | F66: 84.46 | G66: 74.23 | H66: 11 | I66: 否
A67: 65 | B67: 王荣超 | C67: 数学 | D67: 小学 | E67: 66 | F67: 80.43 | G67: 73.22 | H67: 12 | I67: 否
A68: 66 | B68: 徐婧 | C68: 数学 | D68: 小学 | E68: 50 | F68: 87.93 | G68: 68.97 | H68: 13 | I68: 否
A69: 67 | B69: 田景兴 | C69: 数学 | D69: 小学 | E69: 56 | F69: 80.73 | G69: 68.37 | H69: 14 | I69: 否
A70: 68 | B70: 周梅躲 | C70: 数学 | D70: 小学 | E70: 51 | F70: 84.87 | G70: 67.94 | H70: 15 | I70: 否
A71: 69 | B71: 叶世润 | C71: 数学 | D71: 小学 | E71: 88 | F71: 缺考 | G71: =E71*0.5 -> 44.00 | H71: 16 | I71: 否
A72: 70 | B72: 吴梅 | C72: 数学 | D72: 小学 | E72: 57 | F72: 缺考 | G72: =E72*0.5 -> 28.50 | H72: 17 | I72: 否
A73: 71 | B73: 李美 | C73: 数学 | D73: 小学 | E73: 54 | F73: 缺考 | G73: =E73*0.5 -> 27.00 | H73: 18 | I73: 否
A74: 72 | B74: 肖萍 | C74: 数学 | D74: 初中 | E74: 95 | F74: 81.50 | G74: =E74*0.5+F74*0.5 -> 88.25 | H74: 1 | I74: 是
A75: 73 | B75: 卢礼惠 | C75: 数学 | D75: 初中 | E75: 83 | F75: 84.57 | G75: =E75*0.5+F75*0.5 -> 83.79 | H75: 2 | I75: 是
A76: 74 | B76: 杨昌雄 | C76: 数学 | D76: 初中 | E76: 87 | F76: 76.09 | G76: =E76*0.5+F76*0.5 -> 81.55 | H76: 3 | I76: 否
A77: 75 | B77: 杨本华 | C77: 数学 | D77: 初中 | E77: 80 | F77: 80.19 | G77: =E77*0.5+F77*0.5 -> 80.10 | H77: 4 | I77: 否
A78: 76 | B78: 卢雪娟 | C78: 数学 | D78: 初中 | E78: 76 | F78: 缺考 | G78: =E78*0.5 -> 38.00 | H78: 5 | I78: 否
A79: 77 | B79: 李渊 | C79: 数学 | D79: 初中 | E79: 75 | F79: 缺考 | G79: =E79*0.5 -> 37.50 | H79: 6 | I79: 否
A80: 78 | B80: 王廷秋 | C80: 英语 | D80: 小学 | E80: 77 | F80: 83.51 | G80: =E80*0.5+F80*0.5 -> 80.26 | H80: 1 | I80: 是
A81: 79 | B81: 邱春颖 | C81: 英语 | D81: 小学 | E81: 67 | F81: 88.74 | G81: 77.87 | H81: 2 | I81: 是
A82: 80 | B82: 金秋叶 | C82: 英语 | D82: 小学 | E82: 66 | F82: 89.64 | G82: 77.82 | H82: 3 | I82: 是
A83: 81 | B83: 姚小逢 | C83: 英语 | D83: 小学 | E83: 74 | F83: 77.63 | G83: 75.82 | H83: 4 | I83: 否
A84: 82 | B84: 毛羽兰 | C84: 英语 | D84: 小学 | E84: 66 | F84: 84.83 | G84: 75.42 | H84: 5 | I84: 否
A85: 83 | B85: 卢璐 | C85: 英语 | D85: 小学 | E85: 73 | F85: 77.37 | G85: 75.19 | H85: 6 | I85: 否
A86: 84 | B86: 朱文馨 | C86: 英语 | D86: 小学 | E86: 65 | F86: 80.10 | G86: 72.55 | H86: 7 | I86: 否
A87: 85 | B87: 杨全英 | C87: 英语 | D87: 小学 | E87: 64 | F87: 80.25 | G87: 72.13 | H87: 8 | I87: 否
A88: 86 | B88: 梁娇娇 | C88: 英语 | D88: 小学 | E88: 64 | F88: 79.92 | G88: 71.96 | H88: 9 | I88: 否
A89: 87 | B89: 陈飞燕 | C89: 物理 | D89: 初中 | E89: 76 | F89: 89.58 | G89: 82.79 | H89: 1 | I89: 是
A90: 88 | B90: 陈海林 | C90: 物理 | D90: 初中 | E90: 66 | F90: 86.87 | G90: 76.44 | H90: 2 | I90: 否
A91: 89 | B91: 李军 | C91: 物理 | D91: 初中 | E91: 64 | F91: 88.52 | G91: 76.26 | H91: 3 | I91: 否
A92: 90 | B92: 杨秀雷 | C92: 化学 | D92: 初中 | E92: 78 | F92: 90.86 | G92: 84.43 | H92: 1 | I92: 是
A93: 91 | B93: 王龙燕 | C93: 化学 | D93: 初中 | E93: 72 | F93: 83.99 | G93: 78.00 | H93: 2 | I93: 否
A94: 92 | B94: 韦兴菊 | C94: 化学 | D94: 初中 | E94: 74 | F94: 缺考 | G94: =E94*0.5 -> 37.00 | H94: 3 | I94: 否
A95: 93 | B95: 文晓静 | C95: 历史 | D95: 初中 | E95: 86 | F95: 76.84 | G95: =E95*0.5+F95*0.5 -> 81.42 | H95: 1 | I95: 是
A96: 94 | B96: 王荣琴 | C96: 历史 | D96: 初中 | E96: 81 | F96: 81.73 | G96: 81.37 | H96: 2 | I96: 否
A97: 95 | B97: 唐旭凡 | C97: 历史 | D97: 初中 | E97: 69 | F97: 85.99 | G97: 77.50 | H97: 3 | I97: 否
A98: 96 | B98: 陶燕琴 | C98: 道德与法治 | D98: 初中 | E98: 78 | F98: 77.18 | G98: 77.59 | H98: 1 | I98: 是
A99: 97 | B99: 黄莎莎 | C99: 道德与法治 | D99: 初中 | E99: 70 | F99: 83.56 | G99: 76.78 | H99: 2 | I99: 否
A100: 98 | B100: 田茂婷 | C100: 道德与法治 | D100: 初中 | E100: 69 | F100: 80.36 | G100: 74.68 | H100: 3 | I100: 否
A101: 99 | B101: 陈光祥 | C101: 道德与法治 | D101: 初中 | E101: 69 | F101: 缺考 | G101: =E101*0.5 -> 34.50 | H101: 4 | I101: 否
A102: 100 | B102: 王雨凤 | C102: 心理健康 | D102: 小学 | E102: 82 | F102: 88.88 | G102: =E102*0.5+F102*0.5 -> 85.44 | H102: 1 | I102: 是
A103: 101 | B103: 尹慧 | C103: 心理健康 | D103: 小学 | E103: 80 | F103: 85.87 | G103: =E103*0.5+F103*0.5 -> 82.94 | H103: 2 | I103: 是
A104: 102 | B104: 夏理青 | C104: 心理健康 | D104: 小学 | E104: 76 | F104: 78.15 | G104: =E104*0.5+F104*0.5 -> 77.08 | H104: 3 | I104: 否
A105: 103 | B105: 陈海琪 | C105: 心理健康 | D105: 小学 | E105: 72 | F105: 81.59 | G105: =E105*0.5+F105*0.5 -> 76.80 | H105: 4 | I105: 否
A106: 104 | B106: 杨飞燕 | C106: 心理健康 | D106: 小学 | E106: 71 | F106: 82.54 | G106: =E106*0.5+F106*0.5 -> 76.77 | H106: 5 | I106: 否
A107: 105 | B107: 潘小艳 | C107: 心理健康 | D107: 小学 | E107: 71 | F107: 缺考 | G107: =E107*0.5 -> 35.50 | H107: 6 | I107: 否
A108: 106 | B108: 罗韦芬 | C108: 学前教育 | D108: 幼儿园01岗 | E108: 88 | F108: 80.26 | G108: =E108*0.5+F108*0.5 -> 84.13 | H108: 1 | I108: 是
A109: 107 | B109: 程宇 | C109: 学前教育 | D109: 幼儿园01岗 | E109: 88 | F109: 80.14 | G109: 84.07 | H109: 2 | I109: 是
A110: 108 | B110: 齐庆健 | C110: 学前教育 | D110: 幼儿园01岗 | E110: 88 | F110: 79.46 | G110: 83.73 | H110: 3 | I110: 是
A111: 109 | B111: 严梦佳 | C111: 学前教育 | D111: 幼儿园01岗 | E111: 84 | F111: 83.43 | G111: 83.72 | H111: 4 | I111: 是
A112: 110 | B112: 张乾娇 | C112: 学前教育 | D112: 幼儿园01岗 | E112: 87 | F112: 79.88 | G112: 83.44 | H112: 5 | I112: 是
A113: 111 | B113: 王安静 | C113: 学前教育 | D113: 幼儿园01岗 | E113: 84 | F113: 80.17 | G113: 82.09 | H113: 6 | I113: 是
A114: 112 | B114: 符邦焕 | C114: 学前教育 | D114: 幼儿园01岗 | E114: 80 | F114: 83.69 | G114: 81.85 | H114: 7 | I114: 是
A115: 113 | B115: 黄光萍 | C115: 学前教育 | D115: 幼儿园01岗 | E115: 81 | F115: 82.67 | G115: 81.84 | H115: 8 | I115: 是
A116: 114 | B116: 何显燕 | C116: 学前教育 | D116: 幼儿园01岗 | E116: 84 | F116: 77.83 | G116: 80.92 | H116: 9 | I116: 否
A117: 115 | B117: 刘倩 | C117: 学前教育 | D117: 幼儿园01岗 | E117: 80 | F117: 81.80 | G117: 80.90 | H117: 10 | I117: 否
A118: 116 | B118: 张凯丽 | C118: 学前教育 | D118: 幼儿园01岗 | E118: 80 | F118: 79.09 | G118: 79.55 | H118: 11 | I118: 否
A119: 117 | B119: 吴霞 | C119: 学前教育 | D119: 幼儿园01岗 | E119: 80 | F119: 78.87 | G119: 79.44 | H119: 12 | I119: 否
A120: 118 | B120: 谢章菊 | C120: 学前教育 | D120: 幼儿园01岗 | E120: 80 | F120: 78.25 | G120: 79.13 | H120: 13 | I120: 否
A121: 119 | B121: 黄雨婷 | C121: 学前教育 | D121: 幼儿园01岗 | E121: 76 | F121: 81.92 | G121: 78.96 | H121: 14 | I121: 否
A122: 120 | B122: 吴茸 | C122: 学前教育 | D122: 幼儿园01岗 | E122: 77 | F122: 79.94 | G122: 78.47 | H122: 15 | I122: 否
A123: 121 | B123: 陈丹 | C123: 学前教育 | D123: 幼儿园01岗 | E123: 78 | F123: 78.54 | G123: 78.27 | H123: 16 | I123: 否
A124: 122 | B124: 杨桂梅 | C124: 学前教育 | D124: 幼儿园01岗 | E124: 78 | F124: 77.60 | G124: 77.80 | H124: 17 | I124: 否
A125: 123 | B125: 韩晓香 | C125: 学前教育 | D125: 幼儿园01岗 | E125: 78 | F125: 77.39 | G125: 77.70 | H125: 18 | I125: 否
A126: 124 | B126: 伍兴敏 | C126: 学前教育 | D126: 幼儿园01岗 | E126: 77 | F126: 78.22 | G126: 77.61 | H126: 19 | I126: 否
A127: 125 | B127: 王朝艳 | C127: 学前教育 | D127: 幼儿园01岗 | E127: 76 | F127: 79.13 | G127: 77.57 | H127: 20 | I127: 否
A128: 126 | B128: 王佳佳 | C128: 学前教育 | D128: 幼儿园01岗 | E128: 76 | F128: 79.02 | G128: 77.51 | H128: 21 | I128: 否
A129: 127 | B129: 郭梅 | C129: 学前教育 | D129: 幼儿园01岗 | E129: 76 | F129: 77.76 | G129: 76.88 | H129: 22 | I129: 否
A130: 128 | B130: 王雪燕 | C130: 学前教育 | D130: 幼儿园01岗 | E130: 76 | F130: 77.43 | G130: 76.72 | H130: 23 | I130: 否
A131: 129 | B131: 杨安康 | C131: 学前教育 | D131: 幼儿园01岗 | E131: 91 | F131: 缺考 | G131: =E131*0.5 -> 45.50 | H131: 24 | I131: 否
A132: 130 | B132: 田楠 | C132: 学前教育 | D132: 幼儿园02岗 | E132: 87 | F132: 83.14 | G132: =E132*0.5+F132*0.5 -> 85.07 | H132: 1 | I132: 是
A133: 131 | B133: 田汝丹 | C133: 学前教育 | D133: 幼儿园02岗 | E133: 82 | F133: 87.88 | G133: =E133*0.5+F133*0.5 -> 84.94 | H133: 2 | I133: 是
A134: 132 | B134: 梁水英 | C134: 学前教育 | D134: 幼儿园02岗 | E134: 85 | F134: 78.27 | G134: =E134*0.5+F134*0.5 -> 81.64 | H134: 3 | I134: 是
A135: 133 | B135: 高忠桃 | C135: 学前教育 | D135: 幼儿园02岗 | E135: 75 | F135: 87.73 | G135: 81.37 | H135: 4 | I135: 是
A136: 134 | B136: 何娟娟 | C136: 学前教育 | D136: 幼儿园02岗 | E136: 79 | F136: 80.32 | G136: 79.66 | H136: 5 | I136: 是
A137: 135 | B137: 邹国敏 | C137: 学前教育 | D137: 幼儿园02岗 | E137: 79 | F137: 80.25 | G137: 79.63 | H137: 6 | I137: 否
A138: 136 | B138: 汪小芬 | C138: 学前教育 | D138: 幼儿园02岗 | E138: 73 | F138: 84.40 | G138: 78.70 | H138: 7 | I138: 否
A139: 137 | B139: 莫玲玉 | C139: 学前教育 | D139: 幼儿园02岗 | E139: 67 | F139: 85.84 | G139: 76.42 | H139: 8 | I139: 否
A140: 138 | B140: 赵倩倩 | C140: 学前教育 | D140: 幼儿园02岗 | E140: 67 | F140: 83.04 | G140: 75.02 | H140: 9 | I140: 否
A141: 139 | B141: 杨芬 | C141: 学前教育 | D141: 幼儿园02岗 | E141: 69 | F141: 80.25 | G141: =E141*0.5+F141*0.5 -> 74.63 | H141: 10 | I141: 否
A142: 140 | B142: 汪启雪 | C142: 学前教育 | D142: 幼儿园02岗 | E142: 67 | F142: 82.16 | G142: 74.58 | H142: 11 | I142: 否
A143: 141 | B143: 班文芬 | C143: 学前教育 | D143: 幼儿园02岗 | E143: 73 | F143: 75.24 | G143: 74.12 | H143: 12 | I143: 否
A144: 142 | B144: 唐水英 | C144: 学前教育 | D144: 幼儿园02岗 | E144: 69 | F144: 78.92 | G144: =E144*0.5+F144*0.5 -> 73.96 | H144: 13 | I144: 否
A145: 143 | B145: 陈温柔 | C145: 学前教育 | D145: 幼儿园02岗 | E145: 68 | F145: 79.54 | G145: =E145*0.5+F145*0.5 -> 73.77 | H145: 14 | I145: 否
A146: 144 | B146: 王佳 | C146: 学前教育 | D146: 幼儿园02岗 | E146: 68 | F146: 78.34 | G146: =E146*0.5+F146*0.5 -> 73.17 | H146: 15 | I146: 否
